bitfinex-derivatives/quotes_ETHF0:USTF0_20250918
["timestamp","ask_amount","ask_price","bid_price","bid_amount"]
[1758237148338,4.21895712,4588.1,4588.0,0.9463]
[1758237149244,3.99095712,4588.1,4588.0,0.9463]
[1758237149541,4.21895712,4588.1,4588.0,0.9463]
[1758237150038,3.99095712,4588.1,4588.0,0.9463]
[1758237150247,4.21895712,4588.1,4588.0,0.9463]
[1758237151641,3.99095712,4588.1,4588.0,0.9463]
[1758237151945,4.21795712,4588.1,4588.0,0.9463]
[1758237152247,3.4585,4588.1,4588.0,0.9463]
[1758237153044,3.2552,4588.1,4588.0,0.9463]
[1758237153244,0.2744,4588.1,4588.0,0.9463]
[1758237154047,3.7304254,4588.1,4588.0,0.5326]
[1758237154539,3.4822,4588.1,4588.0,0.7401]
[1758237154743,3.4822,4588.1,4588.0,0.9463]
[1758237154940,3.2552,4588.1,4588.0,0.9463]
[1758237155140,3.4822,4588.1,4588.0,0.9463]
[1758237157448,3.2552,4588.1,4588.0,0.9463]
[1758237157644,3.4822,4588.1,4588.0,0.9463]
[1758237158741,3.2552,4588.1,4588.0,0.9463]
[1758237158941,3.4822,4588.1,4588.0,0.9463]
[1758237161646,3.4822,4588.1,4588.0,0.1183]
[1758237161647,3.497,4588.1,4588.0,0.1183]
[1758237161947,3.497,4588.1,4588.0,0.4091]
[1758237162946,3.497,4588.1,4588.0,0.1183]
[1758237163143,3.7303509,4588.1,4588.0,0.1183]
[1758237163544,3.7303509,4588.1,4588.0,0.4091]
[1758237164251,0.0622,4587.9,4587.8,0.0217]
[1758237164441,0.81442606,4587.9,4587.8,0.0217]
[1758237164647,0.0474,4587.7,4587.6,0.2908]
[1758237164849,0.2892,4587.7,4587.6,0.2908]
[1758237165149,0.52256245,4587.7,4587.6,0.2908]
[1758237167342,1.0480396,4587.7,4587.6,0.2908]
[1758237168954,1.0332396,4587.7,4587.6,0.4983]
[1758237172549,1.0480396,4587.7,4587.6,0.2908]
[1758237174353,1.0332396,4587.7,4587.6,0.2908]
[1758237175358,1.0473396,4587.7,4587.6,0.2908]
[1758237179258,1.0332396,4587.7,4587.6,0.49]
[1758237179463,1.0332396,4587.7,4587.6,0.7005]
[1758237183661,1.2654196,4587.7,4587.6,0.2908]
[1758237183867,1.0332396,4587.7,4587.5,0.415]
[1758237184067,4.0262396,4587.6,4587.5,0.415]
[1758237186770,4.03030501,4587.6,4587.5,0.415]
[1758237187268,4.03030501,4587.6,4587.5,0.2983]
[1758237188267,4.24310501,4587.6,4587.5,0.6233]
[1758237188464,4.24310501,4587.6,4587.5,0.8338]
[1758237190067,3.71762786,4587.6,4587.5,0.8338]
[1758237190275,4.22031563,4587.6,4587.5,0.8338]
[1758237190573,4.19770265,4587.6,4587.5,0.9521]
[1758237193674,0.98990265,4587.6,4587.5,0.9521]
[1758237194676,0.76390265,4587.6,4587.5,0.9521]
[1758237196678,0.76390265,4587.6,4587.5,0.8338]
[1758237196880,0.76390265,4587.6,4587.5,0.9521]
[1758237205087,0.23751488,4587.6,4587.5,0.9521]
[1758237205283,0.78691719,4587.6,4587.5,0.9521]
[1758237205691,0.82381719,4587.6,4587.5,0.5364]
[1758237206288,0.80961719,4587.6,4587.5,0.7416]
[1758237207695,0.82381719,4587.6,4587.5,0.7416]
[1758237208198,0.80961719,4587.6,4587.5,0.7416]
[1758237211101,0.80961719,4587.6,4587.5,0.6233]
[1758237211298,0.82381719,4587.6,4587.5,0.5364]
[1758237211501,0.0228,4587.4,4587.3,0.3191]
[1758237211799,0.58650231,4587.4,4587.3,0.2974]
[1758237211998,0.82401719,4587.4,4587.3,0.2974]
[1758237214504,0.80981719,4587.4,4587.3,0.2974]
[1758237214703,0.80981719,4587.4,4587.3,0.4959]
[1758237216401,0.82401719,4587.4,4587.3,0.2974]
[1758237217398,0.80981719,4587.4,4587.3,0.2974]
[1758237218105,1.03581719,4587.4,4587.3,0.2974]
[1758237219809,1.03581719,4587.4,4587.3,0.4959]
[1758237221915,0.79830231,4587.4,4587.3,0.4959]
[1758237222211,1.03584043,4587.4,4587.3,0.4959]
[1758237227506,1.05004043,4587.4,4587.1,0.0218]
[1758237227707,0.0142,4587.1,4586.4,2.4814]
[1758237227910,3.2676,4586.5,4586.4,2.4814]
[1758237228110,4.25784043,4586.5,4586.4,2.4814]
[1758237228306,4.25784043,4586.5,4586.1,0.2974]
[1758237228307,0.0142,4586.4,4586.1,0.2974]
[1758237228506,0.76424043,4586.3,4585.9,0.2974]
[1758237228713,0.76424043,4586.3,4585.5,0.1223]
[1758237228714,0.0598,4585.9,4585.5,0.1223]
[1758237228903,0.0456,4585.7,4585.6,0.1985]
[1758237229111,0.82404043,4585.7,4585.6,0.1985]
[1758237229414,0.82404043,4585.7,4585.6,0.4959]
[1758237230314,0.28313812,4585.7,4585.6,0.4959]
[1758237231313,0.0456,4585.7,4585.6,0.4959]
[1758237233406,0.0456,4585.7,4585.6,0.6985]
[1758237237518,0.0228,4585.7,4585.6,0.6985]
[1758237238113,0.0458,4585.7,4585.6,0.4959]
[1758237238319,0.0228,4585.7,4585.6,0.7044]
[1758237239322,0.226,4585.8,4585.7,0.2892]
[1758237239621,0.2489,4585.8,4585.7,0.6962]
[1758237241118,0.2718,4585.8,4585.7,0.6962]
[1758237241519,0.2718,4585.8,4585.7,0.2892]
[1758237241823,0.2861,4585.8,4585.7,0.2892]
[1758237242219,1.03483521,4585.8,4585.7,0.4932]
[1758237242920,0.76303521,4585.8,4585.7,0.6962]
[1758237243120,0.4631384,4585.8,4585.7,0.6962]
[1758237243826,0.2381384,4585.8,4585.7,0.6962]
[1758237244124,0.225,4585.8,4585.7,0.6962]
[1758237244523,0.2479,4585.8,4585.7,0.6962]
[1758237244723,0.48598803,4585.8,4585.7,0.6962]
[1758237244918,0.2479,4585.8,4585.7,0.6962]
[1758237245625,0.225,4585.8,4585.7,0.6962]
[1758237246123,3.2078,4586.0,4585.7,0.6962]
[1758237246326,0.46310407,4585.9,4585.8,0.2892]
[1758237246524,0.46310407,4585.9,4585.8,0.6962]
[1758237246725,0.48600407,4585.9,4585.8,0.6962]
[1758237247125,0.26100407,4585.9,4585.8,0.6962]
[1758237247329,0.46310407,4585.9,4585.8,0.6962]
[1758237248228,0.98804167,4585.9,4585.8,0.6962]
[1758237248416,0.98810436,4585.9,4585.8,0.6962]
[1758237250430,1.01100436,4585.9,4585.8,0.6962]
[1758237253529,1.03390436,4585.9,4585.8,0.6962]
[1758237259737,1.04820436,4585.9,4585.8,0.2892]
[1758237260236,1.03390436,4585.9,4585.8,0.2892]
[1758237260541,1.04820436,4585.9,4585.8,0.2892]
[1758237261132,1.03390436,4585.9,4585.5,0.4115]
[1758237261327,0.0601,4585.7,4585.6,0.2892]
[1758237261634,1.03390436,4585.7,4585.6,0.2892]
[1758237262035,1.03390436,4585.7,4585.6,0.4932]
[1758237268242,0.98810436,4585.7,4585.6,0.6962]
[1758237269745,1.03350436,4585.7,4585.6,0.6962]
[1758237275148,4.24130436,4585.7,4585.6,0.6962]
[1758237276051,4.21860436,4585.7,4585.6,0.6962]
[1758237276849,3.99360436,4585.7,4585.6,0.6962]
[1758237277051,4.21860436,4585.7,4585.6,0.6962]
[1758237277349,4.19590436,4585.7,4585.6,0.6962]
[1758237278349,3.97090436,4585.7,4585.6,0.6962]
[1758237278550,4.19590436,4585.7,4585.6,0.6962]
[1758237280451,4.21860436,4585.7,4585.6,0.6962]
[1758237282045,3.97090436,4585.7,4585.6,0.6962]
[1758237282251,4.19590436,4585.7,4585.6,0.6962]
[1758237282952,4.21860436,4585.7,4585.6,0.6962]
[1758237286163,4.24130436,4585.7,4585.6,0.6962]
[1758237287867,4.24207832,4585.7,4585.6,0.6962]
[1758237289663,4.01707832,4585.7,4585.6,0.6962]
[1758237289863,4.24207832,4585.7,4585.6,0.6962]
[1758237292770,4.01707832,4585.7,4585.6,0.6962]
[1758237293070,4.24107832,4585.7,4585.6,0.6962]
[1758237295470,4.24107832,4585.7,4585.6,0.4932]
[1758237295671,4.25547832,4585.7,4585.6,0.2892]
[1758237295873,0.0606,4585.4,4585.3,0.2967]
[1758237296068,0.52354072,4585.4,4585.3,0.2967]
[1758237296269,1.04847832,4585.4,4585.3,0.2967]
[1758237296573,1.03407832,4585.4,4585.3,0.6988]
[1758237296965,1.04847832,4585.4,4585.3,0.2967]
[1758237297572,0.0462,4585.1,4585.0,0.1223]
[1758237297769,4.24187832,4585.1,4585.0,0.419]
[1758237297972,4.24187832,4585.1,4585.0,0.7362]
[1758237300368,4.25617832,4585.1,4585.0,0.415]
[1758237300569,4.25617832,4585.1,4584.7,0.0218]
[1758237300874,0.0601,4584.8,4584.7,0.3253]
[1758237301075,0.8090376,4584.8,4584.7,0.3253]
[1758237301375,1.04797832,4584.8,4584.7,0.3253]
[1758237302474,1.04797832,4584.8,4584.7,0.3035]
[1758237302673,0.0229,4584.2,4584.1,0.3035]
[1758237302864,3.73084072,4584.2,4584.1,0.1183]
[1758237303064,3.73084072,4584.2,4583.8,0.3035]
[1758237303065,0.0458,4583.9,4583.8,0.3035]
[1758237303369,0.2841,4583.9,4583.8,0.4218]
[1758237303564,1.04797832,4583.9,4583.8,0.3035]
[1758237306576,1.03367832,4583.9,4583.6,0.3035]
[1758237306774,3.2679,4583.7,4583.6,0.4218]
[1758237306971,4.25577832,4583.7,4583.6,0.4218]
[1758237307167,4.25577832,4583.7,4583.6,0.3035]
[1758237308872,4.03177832,4583.7,4583.6,0.3035]
[1758237309172,3.73084072,4583.7,4583.6,0.3035]
[1758237309772,3.73084072,4583.7,4583.0,0.1234]
[1758237309773,0.0601,4583.2,4583.1,0.3035]
[1758237309971,3.4919,4583.2,4583.1,0.4218]
[1758237310166,3.4919,4583.2,4583.1,0.3035]
[1758237310374,3.72628104,4583.2,4583.1,0.3035]
[1758237311276,3.4919,4583.2,4583.1,0.3035]
[1758237311472,3.4547,4583.2,4583.1,0.7025]
[1758237312273,3.2307,4583.2,4583.1,0.7025]
[1758237312475,3.4547,4583.2,4583.1,0.7025]
[1758237312879,3.2307,4583.2,4583.1,0.7025]
[1758237313071,3.4547,4583.2,4583.1,0.7025]
[1758237313580,3.2078,4583.2,4583.1,0.7025]
[1758237314072,3.4318,4583.2,4583.1,0.7025]
[1758237314278,3.4318,4583.2,4583.1,4.7025]
[1758237314469,3.2078,4583.7,4583.6,0.399]
[1758237314771,3.4547,4583.7,4583.6,0.7025]
[1758237315370,3.2307,4583.7,4583.6,0.7025]
[1758237315568,3.4547,4583.7,4583.6,0.7025]
[1758237315770,3.2307,4583.7,4583.6,0.7025]
[1758237315970,3.4318,4583.7,4583.6,0.7025]
[1758237317177,3.4547,4583.7,4583.6,0.7025]
[1758237317382,3.4776,4583.7,4583.6,0.7025]
[1758237317682,0.0458,4583.6,4583.5,0.3156]
[1758237317880,0.0601,4583.6,4583.5,0.4269]
[1758237318184,0.0601,4583.6,4583.5,0.1234]
[1758237318476,0.0601,4583.6,4583.5,0.4269]
[1758237321187,0.2485812,4583.6,4582.3,0.3035]
[1758237321388,3.2307,4583.0,4582.9,0.7025]
[1758237321583,3.4776,4583.0,4582.9,0.7025]
[1758237321785,3.4919,4583.0,4582.9,0.614]
[1758237322085,3.4776,4583.0,4582.9,0.614]
[1758237323285,3.2536,4583.0,4582.9,0.8208]
[1758237323481,3.4318,4583.0,4582.9,0.8208]
[1758237325790,3.4547,4583.0,4582.9,0.8208]
[1758237326280,3.4318,4583.0,4582.9,0.8208]
[1758237326484,3.2078,4583.0,4582.9,0.8208]
[1758237326782,3.4318,4583.0,4582.9,0.8208]
[1758237327190,3.4547,4583.0,4582.9,0.8208]
[1758237327491,3.4776,4583.0,4582.9,0.8208]
[1758237328184,3.4318,4583.0,4582.9,0.8208]
[1758237328390,3.6666729,4583.0,4582.9,0.8208]
[1758237328590,3.6898729,4583.0,4582.9,0.8208]
[1758237329490,4.23828204,4583.0,4582.9,0.8208]
[1758237329886,4.23846176,4583.0,4582.9,0.8208]
[1758237330086,4.01446176,4583.0,4582.9,0.8208]
[1758237330282,4.23846176,4583.0,4582.9,0.8208]
[1758237330990,4.25296176,4583.0,4582.9,0.4218]
[1758237332389,4.23846176,4583.0,4582.9,0.4218]
[1758237333388,4.23846176,4583.0,4582.9,0.6325]
[1758237335288,4.25296176,4583.0,4582.9,0.4218]
[1758237336293,0.0609,4582.8,4582.7,0.0218]
[1758237336592,0.79560914,4582.8,4581.6,3.2078]
[1758237336795,0.0464,4582.2,4582.1,0.633]
[1758237336996,0.2704,4582.2,4582.1,0.8418]
[1758237337186,0.50577552,4582.2,4582.1,0.7235]
[1758237337387,1.03170075,4582.2,4582.1,0.7235]
[1758237342805,0.80770075,4582.2,4582.1,0.7235]
[1758237342999,1.03170075,4582.2,4582.1,0.7235]
[1758237344598,1.03170075,4582.2,4582.1,0.5147]
[1758237345407,1.04620075,4582.2,4582.1,0.304]
[1758237346399,1.03170075,4582.2,4582.1,0.7235]
[1758237347806,1.03170075,4582.2,4582.1,0.304]
[1758237348106,1.03170075,4582.2,4582.1,0.5147]
[1758237349001,0.80770075,4582.2,4582.1,0.7235]
[1758237349301,1.03170075,4582.2,4582.1,0.7235]
[1758237351603,1.04620075,4582.2,4582.1,0.5147]
[1758237352105,1.04620075,4582.2,4582.1,0.304]
[1758237353404,0.82220075,4582.2,4582.1,0.304]
[1758237353604,1.03170075,4582.2,4582.1,0.304]
[1758237354100,1.04620075,4582.2,4582.1,0.304]
[1758237354497,0.0145,4582.1,4581.9,0.3258]
[1758237354704,4.03000075,4582.0,4581.9,0.4441]
[1758237354999,4.03000075,4582.0,4581.0,0.1234]
[1758237355201,0.0609,4581.7,4581.6,0.4223]
[1758237355600,0.0609,4581.7,4581.6,0.304]
[1758237355601,0.82220075,4581.7,4581.6,0.304]
[1758237356502,0.82220075,4581.7,4581.0,0.1234]
[1758237356503,0.4066,4581.1,4581.0,0.3336]
[1758237356703,1.68485876,4581.1,4581.0,0.3336]
[1758237356903,1.68485876,4581.1,4581.0,0.4519]
[1758237357508,1.44978265,4581.1,4581.0,0.4519]
[1758237358511,1.44978265,4581.1,4581.0,0.767]
[1758237359710,1.44978265,4581.1,4581.0,0.9659]
[1758237359903,1.15528265,4581.1,4581.0,0.9659]
[1758237360504,1.39040567,4581.1,4581.0,0.9659]
[1758237360709,1.39040479,4581.1,4581.0,0.9659]
[1758237361606,0.98380479,4581.1,4581.0,0.9659]
[1758237361811,0.23512214,4581.1,4581.0,0.9659]
[1758237362006,0.45912214,4581.1,4581.0,0.9659]
[1758237362313,0.65422214,4581.1,4581.0,0.9659]
[1758237364003,1.15482214,4581.1,4581.0,0.5568]
[1758237364208,1.67945354,4581.1,4581.0,0.5568]
[1758237364409,1.67945354,4581.1,4581.0,0.4334]
[1758237367304,1.67945354,4581.1,4581.0,0.6267]
[1758237367607,1.67945354,4581.1,4581.0,0.7532]
[1758237369808,1.45545354,4581.1,4581.0,0.7532]
[1758237370009,1.67845354,4581.1,4581.0,0.7532]
[1758237375022,1.67845354,4581.1,4581.0,0.6267]
[1758237375320,1.67845354,4581.1,4581.0,0.4334]
[1758237375513,1.67845354,4581.1,4581.0,0.1183]
[1758237375817,1.67845354,4581.1,4581.0,0.6267]
[1758237377917,1.45545354,4581.1,4581.0,0.6267]
[1758237378120,1.37195354,4581.1,4581.0,0.9521]
[1758237379323,1.37192174,4581.1,4581.0,0.9521]
[1758237379821,0.98272174,4581.1,4581.0,0.9521]
[1758237380520,1.17782174,4581.1,4581.0,0.9521]
[1758237383020,0.75972174,4581.1,4581.0,0.9521]
[1758237383215,0.98272174,4581.1,4581.0,0.9521]
[1758237383417,0.98272174,4581.1,4581.0,1.17039]
[1758237383627,0.98272174,4581.1,4581.0,0.9521]
[1758237385827,0.75972174,4581.1,4581.0,0.9521]
[1758237386025,0.45809034,4581.1,4581.0,4.9521]
[1758237386929,0.223,4581.1,4581.0,4.9521]
[1758237387628,3.2078,4581.3,4581.2,0.7073]
[1758237387828,3.2078,4581.8,4581.5,0.1212]
[1758237388126,3.9064,4581.8,4581.7,0.7103]
[1758237388325,4.67140965,4581.8,4581.7,0.8286]
[1758237388725,4.89440965,4581.8,4581.7,0.8286]
[1758237389126,4.89440965,4581.8,4581.0,0.1265]
[1758237389327,0.6986,4581.2,4581.1,0.5153]
[1758237389628,0.4223,4581.2,4581.1,0.397]
[1758237390128,0.7284,4581.2,4581.1,0.397]
[1758237390927,0.5054,4581.2,4581.1,0.397]
[1758237391129,0.9216,4581.2,4581.1,0.397]
[1758237391330,1.15730747,4581.2,4580.9,0.3351]
[1758237391531,0.9216,4581.2,4581.1,0.1183]
[1758237391731,1.68590982,4581.2,4581.1,0.1183]
[1758237391929,0.8237,4581.0,4580.9,0.3351]
[1758237392128,1.58800982,4581.0,4580.9,0.0218]
[1758237392330,1.58800982,4581.0,4580.9,0.1401]
[1758237393233,1.58800982,4581.0,4580.9,0.1183]
[1758237395431,1.58800982,4581.0,4580.1,0.3133]
[1758237395637,0.3925,4580.2,4579.6,0.4316]
[1758237395839,0.6986,4579.7,4579.6,0.8286]
[1758237396040,0.9216,4579.7,4579.6,0.7103]
[1758237402033,0.9216,4579.7,4579.6,0.2018]
[1758237402234,0.9216,4579.7,4579.6,0.5151]
[1758237403139,0.9216,4579.7,4579.6,0.7103]
[1758237404635,0.6986,4579.7,4579.6,0.7103]
[1758237404835,0.9216,4579.7,4579.6,0.7103]
[1758237405231,0.9216,4579.7,4579.4,0.0218]
[1758237405437,4.0315,4579.5,4579.4,0.5369]
[1758237405632,4.0315,4579.5,4579.4,0.6552]
[1758237405838,4.0315,4579.5,4579.4,0.6334]
[1758237406038,4.0315,4579.5,4579.4,0.8286]
[1758237407341,3.9064,4579.5,4579.4,0.8286]
[1758237408544,4.1294,4579.5,4579.4,0.8286]
[1758237409043,3.9064,4579.5,4579.4,0.8286]
[1758237409342,4.1294,4579.5,4579.4,0.8286]
[1758237412646,3.2078,4579.5,4579.4,0.8286]
[1758237412939,3.4308,4579.5,4579.4,0.8286]
[1758237413445,0.223,4579.5,4579.4,0.8286]
[1758237414939,0.3061,4579.9,4579.4,0.8286]
[1758237415138,0.7233,4579.9,4579.8,0.8102]
[1758237415343,0.9463,4579.9,4579.8,0.8102]
[1758237415643,0.9463,4579.9,4579.8,0.6919]
[1758237417043,0.9463,4579.9,4579.5,0.288]
[1758237417242,0.9463,4579.9,4579.8,0.1183]
[1758237417440,4.1541,4579.9,4579.8,0.1183]
[1758237417650,4.1541,4579.9,4579.3,0.288]
[1758237417947,4.1541,4579.9,4579.8,0.6204]
[1758237418343,4.1541,4579.9,4579.8,0.5021]
[1758237420045,3.9311,4579.9,4579.8,0.7101]
[1758237420244,4.38849604,4579.9,4579.8,0.7101]
[1758237420440,4.91680022,4579.9,4579.8,0.7101]
[1758237423453,4.91680022,4579.9,4579.8,0.208]
[1758237423654,4.91680022,4579.9,4579.3,0.2941]
[1758237423955,4.1541,4579.9,4579.8,0.1183]
[1758237424158,4.9177211,4579.9,4579.8,0.1183]
[1758237424352,4.9177211,4579.9,4579.3,0.2941]
[1758237424552,4.1541,4579.9,4579.8,0.1183]
[1758237424748,4.91802088,4579.9,4579.3,0.2941]
[1758237424952,3.8959,4579.4,4579.2,0.3159]
[1758237425156,3.8959,4579.4,4579.3,0.1183]
[1758237425355,4.88330867,4579.4,4579.3,0.1183]
[1758237425556,4.88330867,4579.4,4579.2,0.3159]
[1758237425758,4.1189,4579.4,4579.3,0.1183]
[1758237425958,4.88314078,4579.4,4579.2,0.0218]
[1758237426161,4.1189,4579.4,4579.3,0.1183]
[1758237426456,4.88308832,4579.4,4579.3,0.1183]
[1758237426658,4.88308832,4579.4,4579.2,0.0218]
[1758237426855,1.4521792,4579.3,4579.2,0.0218]
[1758237427250,0.3963,4578.4,4578.3,3.7078]
[1758237427553,0.1215,4579.0,4577.9,0.2941]
[1758237427554,0.2918,4578.3,4577.9,0.2941]
[1758237427859,0.2918,4578.3,4577.8,2.3023]
[1758237427860,0.8096,4578.0,4577.8,2.3023]
[1758237428063,0.6881,4577.3,4577.2,3.7078]
[1758237428257,0.6881,4577.3,4577.2,3.9158]
[1758237428559,0.6881,4577.3,4577.2,4.0341]
[1758237429358,0.4963,4577.3,4577.2,4.0341]
[1758237430261,0.4963,4577.8,4577.7,0.2059]
[1758237430558,0.7193,4577.8,4577.7,0.708]
[1758237430758,0.7193,4577.8,4577.7,0.8263]
[1758237431059,0.9111,4577.8,4577.7,0.8263]
[1758237431760,0.9111,4577.8,4577.7,0.1183]
[1758237433067,0.6881,4577.3,4577.0,0.0218]
[1758237433259,0.6881,4577.1,4577.0,0.0218]
[1758237433566,3.8959,4577.1,4577.0,0.0218]
[1758237433862,0.6881,4576.5,4576.4,0.5]
[1758237434264,0.6881,4576.5,4576.4,0.6183]
[1758237434461,0.6881,4576.5,4576.4,0.8263]
[1758237435263,0.4963,4576.5,4576.4,0.8263]
[1758237435664,0.6881,4576.5,4576.4,0.8263]
[1758237441067,0.4963,4576.5,4576.4,0.8263]
[1758237441461,0.8096,4577.0,4576.9,0.5]
[1758237441662,0.8096,4577.0,4576.9,0.2059]
[1758237441967,0.8096,4577.0,4576.6,0.2941]
[1758237442167,0.8096,4577.0,4576.7,0.1183]
[1758237442470,0.5178,4577.0,4576.7,0.4124]
[1758237442667,0.6881,4576.8,4576.7,0.5]
[1758237443261,0.2918,4576.8,4576.7,0.8263]
[1758237443665,0.4963,4576.8,4576.7,0.8263]
[1758237443865,0.6881,4576.8,4576.7,0.8263]
[1758237444066,0.6881,4576.8,4576.7,0.1183]
[1758237447073,0.9111,4576.8,4576.7,0.1183]
[1758237447766,0.1215,4576.5,4576.2,3.2296]
[1758237447969,0.7265,4576.4,4576.3,0.1183]
[1758237448373,0.9495,4576.4,4576.2,0.0218]
[1758237448573,0.9495,4576.4,4576.3,0.1183]
[1758237449170,0.9495,4576.4,4576.2,0.0218]
[1758237449369,0.9495,4576.4,4576.3,0.1183]
[1758237449766,0.9495,4576.4,4576.3,0.717]
[1758237450270,0.223,4576.5,4576.3,0.717]
[1758237450469,0.7265,4576.7,4576.6,0.717]
[1758237450671,0.9495,4576.7,4576.6,0.8353]
[1758237450863,0.7265,4576.7,4576.6,0.717]
[1758237451060,0.9495,4576.7,4576.6,0.717]
[1758237453762,0.3142,4577.0,4576.6,0.4038]
[1758237453968,3.2078,4577.1,4577.0,0.4324]
[1758237454265,0.7265,4577.4,4577.3,0.717]
[1758237454573,0.7265,4577.4,4577.3,0.8353]
[1758237454773,0.7265,4577.4,4577.3,0.717]
[1758237455166,0.2035,4577.4,4577.3,0.717]
[1758237455475,0.223,4577.8,4577.5,0.523]
[1758237455775,0.4265,4577.8,4577.7,0.717]
[1758237455972,0.9495,4577.8,4577.1,0.0218]
[1758237456173,0.7265,4577.3,4577.2,0.1183]
[1758237456373,0.9495,4577.3,4577.2,0.1183]
[1758237456577,0.9495,4577.3,4577.1,0.335]
[1758237456874,0.9495,4577.3,4577.2,0.1183]
[1758237457175,0.9495,4577.3,4577.1,0.0218]
[1758237457176,1.71698899,4577.3,4577.1,0.0218]
[1758237457376,0.96477,4577.2,4577.1,0.0218]
[1758237457572,0.98082009,4577.2,4577.1,0.0218]
[1758237457778,0.01605009,4577.2,4577.1,0.7388]
[1758237458277,0.74255009,4577.2,4577.1,0.7388]
[1758237458480,0.21955009,4577.2,4577.1,0.7388]
[1758237458782,0.01605009,4577.2,4577.1,0.717]
[1758237462879,0.01605009,4577.2,4577.1,4.717]
[1758237464975,0.01605009,4577.2,4577.1,4.94]
[1758237471776,0.74255009,4577.2,4577.1,0.717]
[1758237473684,0.74255009,4577.2,4577.1,0.5054]
[1758237474182,0.74255009,4577.2,4576.9,0.0218]
[1758237474390,0.8454,4577.0,4576.9,0.0218]
[1758237474586,0.8454,4576.0,4575.9,3.2078]
[1758237474880,0.8454,4576.0,4575.5,0.3412]
[1758237474881,0.6972,4575.8,4575.7,0.5207]
[1758237475275,0.6972,4575.8,4575.7,0.639]
[1758237475683,0.71325009,4575.8,4575.7,0.1183]
[1758237476082,0.71325009,4575.8,4575.7,0.8195]
[1758237476587,0.71325009,4575.8,4575.7,0.1183]
[1758237478580,0.71325009,4575.8,4575.3,0.72712503]
[1758237478890,0.5157,4575.5,4575.4,0.328]
[1758237479090,0.8321,4575.5,4575.4,0.6235]
[1758237479388,0.7124,4575.5,4575.4,0.834]
[1758237479787,0.72845009,4575.5,4575.4,0.834]
[1758237480691,0.84815009,4575.5,4575.4,0.834]
[1758237481283,0.84815009,4575.5,4575.4,0.1183]
[1758237482089,0.84815009,4575.5,4575.3,0.43712503]
[1758237482390,0.7124,4575.4,4575.3,0.43712503]
[1758237482785,7.93625009,4575.4,4574.4,3.2078]
[1758237483092,0.7124,4574.5,4574.4,3.9235]
[1758237483691,0.7124,4574.5,4574.4,4.0418]
[1758237483883,0.72845009,4574.5,4574.4,4.0418]
[1758237484894,0.21855009,4574.5,4574.4,4.0418]
[1758237485087,0.01605009,4574.5,4574.4,4.0418]
[1758237485992,0.72845009,4574.5,4574.4,4.0418]
[1758237486194,0.01605009,4574.5,4574.4,4.0418]
[1758237488192,0.72845009,4574.5,4574.4,4.0418]
[1758237489193,0.53495009,4574.5,4574.4,4.0418]
[1758237489398,0.01605009,4574.5,4574.4,4.0418]
[1758237489599,0.53495009,4574.5,4574.4,4.0418]
[1758237491899,0.72845009,4574.5,4574.4,4.0418]
[1758237492596,0.72845009,4574.5,4574.4,0.834]
[1758237493105,0.84815009,4574.5,4574.4,0.1183]
[1758237493300,0.84815009,4574.5,4574.4,0.6235]
[1758237493699,0.84815009,4574.5,4574.4,0.834]
[1758237494096,0.84815009,4574.5,4574.4,0.328]
[1758237494300,0.84815009,4574.5,4574.4,0.6235]
[1758237495102,0.84815009,4574.5,4574.4,0.834]
[1758237495695,0.72845009,4574.5,4574.4,0.834]
[1758237495897,0.84815009,4574.5,4574.4,0.1183]
[1758237496595,0.84815009,4574.5,4574.4,0.6235]
[1758237496793,0.72845009,4574.5,4574.4,0.834]
[1758237497504,0.84815009,4574.5,4574.4,0.6235]
[1758237497801,0.84815009,4574.5,4574.4,0.834]
[1758237500203,0.6386,4573.5,4573.2,0.2955]
[1758237500500,3.5242,4574.0,4573.3,0.4202]
[1758237500694,3.73955009,4574.5,4574.4,0.2097]
[1758237500897,3.73955009,4574.5,4574.4,0.5052]
[1758237501297,4.27795009,4574.5,4574.4,0.5052]
[1758237501500,4.27795009,4574.5,4574.4,0.2097]
[1758237501901,4.27795009,4574.5,4574.0,0.1164]
[1758237502201,0.2025,4574.2,4574.1,0.6235]
[1758237502406,0.7124,4574.2,4574.1,0.5052]
[1758237502806,0.72845009,4574.2,4574.1,0.5052]
[1758237503199,0.72845009,4574.2,4574.1,0.7157]
[1758237505104,0.96347856,4574.2,4574.1,0.7157]
[1758237505309,1.18547856,4574.2,4574.1,0.7157]
[1758237506308,1.71684422,4574.2,4574.1,0.7157]
[1758237507114,1.18547856,4574.2,4574.1,0.7157]
[1758237507410,1.71694768,4574.2,4574.1,0.7157]
[1758237508717,0.7301,4573.9,4573.8,0.2962]
[1758237508912,3.95395009,4573.9,4573.7,0.0218]
[1758237509110,0.519,4573.2,4573.1,0.7041]
[1758237509415,0.7301,4573.2,4573.1,0.8224]
[1758237509717,0.2111,4573.2,4573.1,0.7041]
[1758237509909,0.22715009,4573.2,4573.1,0.7041]
[1758237510110,0.54565009,4573.2,4573.1,0.7041]
[1758237510820,0.74615009,4573.2,4573.1,0.1968]
[1758237511015,0.1252,4573.0,4572.8,0.2962]
[1758237511213,0.7301,4572.8,4572.5,3.504]
[1758237511417,0.7301,4572.8,4572.7,1.1183]
[1758237511716,0.7301,4572.8,4572.7,1.6113]
[1758237511915,0.7301,4572.8,4572.7,1.8224]
[1758237512107,0.74615009,4572.8,4572.7,1.8224]
[1758237512614,0.96815009,4572.8,4572.7,1.8224]
[1758237513111,0.01605009,4572.8,4572.7,1.8224]
[1758237513511,3.2078,4574.0,4573.9,0.7041]
[1758237513716,3.4298,4574.0,4573.9,0.8224]
[1758237513913,3.6409,4574.0,4573.9,0.8224]
[1758237514408,3.9594,4574.0,4573.9,0.8224]
[1758237514806,3.7374,4574.0,4573.9,0.8224]